Cogmind - Beta 15 @@@ ROGUE MODE // 2025.10.12 @ 18:19:15 Player: microsand Result: Destroyed by L-31 Rogue with Katana Performance ------------- Evolutions (1) 500 Regions Visited (4) 800 Robots Destroyed (82) 410 Value Destroyed (1740) 1740 Prototype IDs (0) 0 Alien Tech Used (0) 0 Bonus (105) 105 TOTAL SCORE: 3555 Bonus ------- High Alert Combat Kills 105 Cogmind --------- Core Integrity 0/400 Matter 155/300 Energy 160/160 System Corruption 5% Temperature Cool (6) Movement Core (300) Ox5 Location -9/Mines Parts ------- > --- POWER (1) -------- Light Nuclear Core > --- PROPULSION (2) --- (None) > --- UTILITY (4) ------ Small Storage Unit Small Storage Unit > --- WEAPON (2) ------- Katana > --- INVENTORY (8) ---- Improved Ion Engine Hacking Suite Rocket Launcher Mining Laser Peak State ------------ > --- POWER ------------ Improved Ion Engine > --- PROPULSION ------- Light Treads Advanced Treads > --- UTILITY ---------- Small Storage Unit Light Armor Plating Light Armor Plating Light Armor Plating > --- WEAPON ----------- High-powered Shotgun High-powered Shotgun > --- INVENTORY -------- Light Nuclear Core Seismic Detector Assault Rifle Rocket Launcher Rocket Launcher Mining Laser Katana [Rating: 17] Favorites ----------- Power Light Ion Engine Engine Light Ion Engine Power Core Light Nuclear Core Propulsion Aluminum Leg Treads Light Treads Leg Aluminum Leg Utility Small Storage Unit Device Seismic Detector Storage Small Storage Unit Protection Light Armor Plating Weapon High-powered Shotgun Energy Gun Beam Rifle Energy Cannon Beam Cannon Ballistic Gun High-powered Shotgun Ballistic Cannon Light Cannon Launcher Rocket Launcher Slashing Weapon Katana Build | -11 -10 -10 -9 -9 ------- Run | Yrd Mat Min Mat Min Slots Evolved 2 | . . . 2 . Power . | . . . . . Propulsion . | . . . . . Utility 2 | . . . 2 . Weapon . | . . . . . Parts Attached 35 | 7 4 1 19 4 Power 5 | 1 . . 3 1 Engine 3 | 1 . . 2 . Core 2 | . . . 1 1 Reactor . | . . . . . Propulsion 9 | 2 . 1 6 . Treads 5 | . . 1 4 . Leg 4 | 2 . . 2 . Wheel . | . . . . . Hover . | . . . . . Flight . | . . . . . Utility 8 | 2 . . 6 . Device 1 | 1 . . . . Storage 4 | 1 . . 3 . Processor . | . . . . . Hackware . | . . . . . Protection 3 | . . . 3 . Artifact . | . . . . . Weapon 13 | 2 4 . 4 3 Energy Gun 1 | . . . 1 . Energy Cannon 1 | . 1 . . . Ballistic Gun 5 | 2 . . 3 . Ballistic Cannon 1 | . 1 . . . Launcher 4 | . 2 . . 2 Special Weapon . | . . . . . Impact Weapon . | . . . . . Slashing Weapon 1 | . . . . 1 Piercing Weapon . | . . . . . Special Melee Weapon . | . . . . . Unidentified Prototypes . | . . . . . Parts Lost 20 | . . . 12 8 Power 3 | . . . 2 1 Propulsion 5 | . . . 3 2 Utility 6 | . . . 4 2 Weapon 6 | . . . 3 3 Highest Loss Streak 5 | . . . 3 5 To Critical Strikes . | . . . . . Average Backups 6 | 1 7 8 6 4 Power 1 | . 1 2 1 1 Propulsion . | . . . . . Utility 1 | . 1 1 . 1 Weapon 3 | . 3 4 4 2 Tool/Special . | . . . . . Unused Backups 3 | . . . 1 2 Power 1 | . . . 1 . Propulsion . | . . . . . Utility 1 | . . . . 1 Weapon 1 | . . . . 1 Tool/Special . | . . . . . Average Slot Usage (%) 83 | . 100 95 82 56 Engine 8 | . 14 14 6 3 Treads 8 | . . 4 14 5 Leg 10 | . 28 20 2 . Device 6 | . 14 14 4 . Storage 18 | . 14 14 17 28 Protection 7 | . . . 15 . Energy Gun 1 | . . . 2 3 Ballistic Gun 12 | . 10 14 16 5 Ballistic Cannon 3 | . 8 14 1 . Launcher 2 | . 8 . . 1 Peak Build Rating 17 | 7 10 10 17 13 Average Rating 10 | 5 8 8 12 8 On Entrance 7 | . 7 8 9 13 Naked Turns . | . . . . . Heaviest Build 33 | 12 17 14 33 29 Greatest Support 42 | 20 20 22 42 40 Greatest Overweight (x) 9 | . . . 1 9 Average Overweight (x) . | . . . . 3 Largest Inventory Capacity 8 | 8 8 8 8 8 Average Capacity 7 | 7 8 8 8 8 Most Carried 8 | 4 8 8 8 7 Average Carried 6 | 1 7 7 6 4 Final Capacity 8 | 8 8 8 8 8 Final Carried 8 | 2 8 8 6 4 Class Distribution -------------------- 100% | Mutant Dominant Class ---------------- Mutant | -10/Materials Mutant | -10/Mines Mutant | -9/Materials Mutant | -9/Mines Resources | -11 -10 -10 -9 -9 ----------- Run | Yrd Mat Min Mat Min Matter Collected 1424 | 232 320 . 550 322 Remotely . | . . . . . Salvage Created 2205 | 112 403 . 1064 626 Parts 139 | 7 34 . 61 37 Haulers Intercepted 1 | . 1 . . . Recyclers Shooed 5 | . 1 . 3 1 Parts Field Recycled . | . . . . . Retrieved Matter . | . . . . . Parts Self-Destructed . | . . . . . Prevented . | . . . . . Kills | -11 -10 -10 -9 -9 ------- Run | Yrd Mat Min Mat Min Combat Hostiles Destroyed 56 | . 10 . 27 19 Melee 1 | . . . . 1 Guns 36 | . 3 . 27 6 Cannons 2 | . 2 . . . AOE 17 | . 5 . . 12 Classes Destroyed 12 | 2 7 . 2 1 Worker 4 | . 1 . 3 . Builder 5 | . 2 . . 3 Tunneler 6 | 2 . . . 4 Hauler 1 | . 1 . . . Recycler 8 | 1 3 . 2 2 Operator 2 | . 1 . 1 . Watcher 1 | . 1 . . . Swarmer 20 | . 6 . 8 6 Grunt 28 | . 4 . 13 11 Brawler 2 | . . . 1 1 Sentry 5 | . . . 5 . Assembled 1 | . . . . 1 Best Kill Streak 18 | 2 9 . 4 18 Combat Bots Only 10 | . 3 . 4 10 Max Kills in Single Turn 6 | 1 4 . 1 6 Gunslinging . | . . . . . Exploded 4 | . 2 . . 4 Melee 1 | . . . . 1 Uniques/NPCs Destroyed . | . . . . . Combat | -11 -10 -10 -9 -9 -------- Run | Yrd Mat Min Mat Min Hostile Shots Fired 314 | . 41 . 178 95 Missed 84 | . 11 . 50 23 Hits 230 | . 30 . 128 72 Melee 9 | . . . 1 8 Projectile 221 | . 30 . 127 64 Critical Strikes 5 | . . . 2 3 Damage Taken 3102 | . 320 31 1708 1043 Core 464 | . 50 . 231 183 Absorbed by Shields . | . . . . . Core Remaining (%) 90 | 100 . 80 . . Volleys Fired 161 | 11 18 . 94 38 Largest 2 | 2 2 . 2 2 Hottest 89 | 40 66 . 79 89 Shots Fired 291 | 22 31 . 174 64 Gun 253 | 22 13 . 170 48 Cannon 11 | . 7 . 4 . Launcher 27 | . 11 . . 16 Special . | . . . . . Kinetic 199 | 22 20 . 130 27 Thermal 65 | . . . 44 21 Explosive 27 | . 11 . . 16 Electromagnetic . | . . . . . Robot Hit Streak 13 | 9 3 . 13 8 Robot Miss Streak 8 | 2 3 . 8 5 Penetration Max . | . . . . . Secondary Targets 1 | . . . . 1 Max Gunslinging Chain 1 | . . . . 1 Shots Hit Robots 181 | 15 11 . 120 35 Core Hits 127 | 4 27 . 51 45 Critical Kills . | . . . . . Critical Parts Destroyed 1 | . . . 1 . Critical Strikes 3 | . . . 3 . Burn 2 | . . . 2 . Destroy 1 | . . . 1 . Melee Attacks 2 | . . . . 2 Impact . | . . . . . Slashing 2 | . . . . 2 Piercing . | . . . . . Sneak Attacks . | . . . . . Combat Hostiles . | . . . . . Follow-up Attacks . | . . . . . Damage Inflicted 5231 | 159 1086 . 2045 1941 Guns 2523 | 159 103 . 1844 417 Cannons 121 | . 54 . 67 . Explosions 2508 | . 929 . 122 1457 Melee 63 | . . . . 63 Ramming 16 | . . . 12 4 Kinetic 2018 | 159 157 . 1460 242 Thermal 626 | . . . 451 175 Explosive 2508 | . 929 . 122 1457 Electromagnetic . | . . . . . Impact . | . . . . . Slashing 63 | . . . . 63 Piercing . | . . . . . Highest Corruption 5 | . . . 1 5 Average Corruption 3 | . . . 1 4 Corruption Purged . | . . . . . Corruption Blocked . | . . . . . Effects 18 | . . . 2 16 Message Errors 5 | . . . 1 4 Matter Fused 3 | . . . 1 2 Heat Flow Errors 1 | . . . . 1 Energy Discharges 2 | . . . . 2 Parts Rejected 2 | . . . . 2 Data Loss (minor) 3 | . . . . 3 Misfires 1 | . . . . 1 Weapon Failures 1 | . . . . 1 Overload Shots . | . . . . . Overflow Damage 124 | . 23 . 57 44 Projectiles . | . . . . . Explosions 124 | . 23 . 57 44 Melee . | . . . . . Knockbacks 1 | . 1 . . . Impact . | . . . . . Kinetic 1 | . 1 . . . Secondary . | . . . . . Self-Inflicted Damage 445 | . 62 . 270 113 Shots 9 | . 2 . 3 4 Rammed 5 | . . . 3 2 Targets Rammed 6 | . . . 4 2 Kicked 1 | . . . 1 . Crushed . | . . . . . Highest Temperature 218 | . 42 . 135 218 Average Temperature 51 | . 17 . 32 93 Received Heat Transfer 855 | . 42 . 480 333 Siege Activations . | . . . . . Martial Activations . | . . . . . Shielding Activations . | . . . . . Robots Disrupted . | . . . . . Combat Hostiles . | . . . . . Robots Corrupted . | . . . . . Combat Hostiles . | . . . . . Parts Fried . | . . . . . Impact Corruptions . | . . . . . Robots Melted . | . . . . . Combat Hostiles . | . . . . . Parts Melted 2 | . . . 1 1 Heat Transferred 1739 | . . . 1295 444 Parts Sabotaged . | . . . . . Parts Stolen . | . . . . . Parts Stripped . | . . . . . Power Chain Reactions . | . . . . . Alert | -11 -10 -10 -9 -9 ------- Run | Yrd Mat Min Mat Min Maximum Alert Level 2 | . . . 2 2 Low Security (%) 72 | 100 100 100 75 15 Level 1 10 | . . . 14 17 Level 2 16 | . . . 10 67 Level 3 . | . . . . . Level 4 . | . . . . . Level 5 . | . . . . . High Security . | . . . . . Max Security . | . . . . . Peak Influence 520 | 5 149 . 463 520 Initial 174 | . . . . 174 Average 151 | 1 61 . 133 390 Influence Increases 1873 | 15 394 . 898 566 Destroy 0b10 Robot/C 1100 | . 200 . 540 360 Destroy 0b10 Robot/NC 135 | 15 45 . 30 45 Destroy Leader 234 | . 44 . 130 60 Successful Hack 24 | . 12 . 12 . Disable Machine 105 | . 30 . 75 . Destroy Structure 155 | . 63 . 21 71 Lose Combat Pursuer 120 | . . . 90 30 Influence Decreases 1491 | 15 394 . 450 632 Entered New Map 274 | . . . . 274 Time Decay 952 | 15 319 . 340 278 Lost Part 190 | . . . 110 80 Purge Threat 75 | . 75 . . . Squads Dispatched 5 | . . . 4 1 Investigation 2 | . . . 2 . Extermination . | . . . . . Reinforcement 3 | . . . 2 1 Assault . | . . . . . Garrison . | . . . . . Intercept . | . . . . . Searches Triggered . | . . . . . Construction Impeded 1 | . . . . 1 Haulers Reinforced . | . . . . . Active Scanning Responses . | . . . . . Cargo Convoy Interrupts . | . . . . . Stealth | -11 -10 -10 -9 -9 --------- Run | Yrd Mat Min Mat Min Distress Signals 7 | . 2 . 3 2 Communications Jammed . | . . . . . Distress Signals . | . . . . . Times Spotted 88 | . 15 . 49 24 Peak Tracking Total 7 | . 4 . 7 7 Tactical Retreats 5 | . . . 4 1 Traps | -11 -10 -10 -9 -9 ------- Run | Yrd Mat Min Mat Min Traps Triggered 2 | . . . 2 . Indirectly . | . . . . . Trap Hack Attempts . | . . . . . Triggered . | . . . . . Disarmed . | . . . . . Reprogrammed . | . . . . . Reused . | . . . . . Traps Extracted . | . . . . . Installed . | . . . . . Triggered . | . . . . . Machines | -11 -10 -10 -9 -9 ---------- Run | Yrd Mat Min Mat Min Machines Disabled 7 | . 2 . 5 . Max in Single Turn 3 | . 1 . 3 . Machines Repaired . | . . . . . Machines Dismantled . | . . . . . Machines Sabotaged . | . . . . . Overloaded Fab Kills . | . . . . . Hacking | -11 -10 -10 -9 -9 --------- Run | Yrd Mat Min Mat Min Machines Accessed 10 | . 4 1 5 . Terminals 9 | . 4 . 5 . Fabricators . | . . . . . Repair Stations . | . . . . . Recycling Units . | . . . . . Scanalyzers . | . . . . . Garrison Access . | . . . . . Total Hacks 32 | . 14 1 17 . Successful 10 | . 5 1 4 . Failed 22 | . 9 . 13 . Catastrophic 4 | . . . 4 . Database Lockouts . | . . . . . Manual 32 | . 15 . 17 . Terminals 31 | . 14 . 17 . Fabricators . | . . . . . Repair Stations . | . . . . . Recycling Units . | . . . . . Scanalyzers . | . . . . . Garrison Access . | . . . . . Terminal Hacks 6 | . 2 1 3 . Part Schematic 1 | . 1 . . . Open Door 1 | . . 1 . . Branch Access Points 1 | . . . 1 . Unreport Threat 1 | . 1 . . . Hauler Manifests 2 | . . . 2 . Fabricator Hacks . | . . . . . Repair Station Hacks . | . . . . . Recycling Unit Hacks . | . . . . . Scanalyzer . | . . . . . Garrison Access Hacks . | . . . . . Unauthorized Hacks 4 | . 3 . 1 . Terminals 4 | . 3 . 1 . Botnet 3 | . 2 . 1 . Operators 1 | . 1 . . . Fabricators . | . . . . . Repair Stations . | . . . . . Recycling Units . | . . . . . Scanalyzers . | . . . . . Garrison Access . | . . . . . Data Cores Recovered 1 | . 1 . . . Used 1 | . 1 . . . Hacking Detections 9 | . 4 . 5 . Full Trace Events 2 | . . . 2 . Feedback Events 1 | . . . 1 . Corruption 1 | . . . 1 . Feedback Blocked . | . . . . . Robot Schematics Acquired . | . . . . . Robots Built . | . . . . . Authchips . | . . . . . Time . | . . . . . Total Robot Build Rating . | . . . . . Part Schematics Acquired 1 | . 1 . . . Parts Built . | . . . . . Authchips . | . . . . . Time . | . . . . . Total Part Build Rating . | . . . . . Parts Repaired . | . . . . . Time . | . . . . . Parts Recycled . | . . . . . Recycled Matter . | . . . . . Retrieved Matter . | . . . . . Retrieved Components . | . . . . . Parts Scanalyzed . | . . . . . Part Schematics Acquired . | . . . . . Parts Damaged . | . . . . . Bothacking | -11 -10 -10 -9 -9 ------------ Run | Yrd Mat Min Mat Min Used RIF Installer . | . . . . . Robots Hacked . | . . . . . Non-combat . | . . . . . Combat . | . . . . . Robot Hacks Applied . | . . . . . Relay Couplers Released . | . . . . . Fabnet Peak Effective % . | . . . . . Robots Rewired . | . . . . . Allies Hacked . | . . . . . Hacks Repelled . | . . . . . Allies | -11 -10 -10 -9 -9 -------- Run | Yrd Mat Min Mat Min Total Allies . | . . . . . Largest Group . | . . . . . Highest-Rated Group . | . . . . . Highest-Rated Ally . | . . . . . Total Orders . | . . . . . Ally Attacks . | . . . . . Total Damage . | . . . . . Kills . | . . . . . Allies Corrupted . | . . . . . Allies Melted . | . . . . . Intel | -11 -10 -10 -9 -9 ------- Run | Yrd Mat Min Mat Min Active Infowar (turns) 1725 | 8 956 58 703 . Seismic 1725 | 8 956 58 703 . Robot Analysis Total . | . . . . . Derelict Logs Recovered 1 | . . . . 1 Drone Launches . | . . . . . Drone Recoveries . | . . . . . Exploration | -11 -10 -10 -9 -9 ------------- Run | Yrd Mat Min Mat Min Turns Passed 3360 | 125 956 58 1619 602 Spaces Moved 1743 | 74 741 42 716 170 Core 140 | 15 . . . 125 Treads 657 | . . 12 600 45 Legs 946 | 59 741 30 116 . Wheels . | . . . . . Hover . | . . . . . Flight . | . . . . . Fastest Speed 50 | 50 120 120 120 160 Average Speed 150 | 105 120 127 159 267 Slowest Speed 500 | 120 120 145 240 500 Overloaded Moves . | . . . . . Propulsion Burnouts . | . . . . . Robots Hopped . | . . . . . Potential Cave-ins . | . . . . . Cave-ins Triggered . | . . . . . Exploration Rate (%) 37 | 5 69 10 64 41 Regions Visited 4 Branch Regions 2 Pre-discovered Areas 1 | . . . . 1 Known Exits Taken 1 | . . . 1 . Unknown Exits Taken 3 | 1 1 1 . . Scrap Searched 1 | . . . . 1 Spaces Dug . | . . . . . Terrain Destroyed 206 | . 63 . 19 124 Melee . | . . . . . Projectile . | . . . . . AOE 206 | . 63 . 19 124 Terrain Rammed . | . . . . . Walls Destroyed . | . . . . . Machines Disabled . | . . . . . Actions | -11 -10 -10 -9 -9 --------- Run | Yrd Mat Min Mat Min Total 2206 | 101 781 48 1024 252 Wait 197 | 1 4 1 162 29 Move 1739 | 73 740 41 715 170 Hop . | . . . . . Pick Up 43 | 9 9 2 20 3 Fast Attach . | . . . . . Attach 32 | 7 2 . 18 5 Detach 2 | . 2 . . . Swap 13 | . 3 1 6 3 Drop 11 | . 3 3 5 . Fire 161 | 11 18 . 94 38 Melee 2 | . . . . 2 Ram 2 | . . . . 2 Kick 1 | . . . 1 . Crush 3 | . . . 3 . Escape Stasis . | . . . . . Rewire . | . . . . . Trap . | . . . . . Miscellaneous . | . . . . . Route ------- -11/Scrapyard -10/Materials (discovered 4 exits: *Mat x3 / *Min) -10/Mines -9/Materials (discovered 4 exits: [*Mat x2] / *Min x2) -9/Mines (discovered 1 exit: [*Mat]) History --------- Turn | Location | Event 6 | -11/Scrapyard | Discovered new exit (range 15) 126 | -11/Scrapyard | Entered Materials 293 | -10/Materials | Discovered new exit (range 4) 309 | -10/Materials | Build established: Mutant 490 | -10/Materials | Discovered new exit (range 16) 724 | -10/Materials | Discovered new exit (range 14) 816 | -10/Materials | Discovered new exit (range 12) 1082 | -10/Materials | Entered Mines 1098 | -10/Mines | Discovered new exit (range 9) 1111 | -10/Mines | Met a Derelict who couldn't figure out how to use a Trap Extractor 1140 | -10/Mines | Entered Materials 1140 | -9/Materials | Evolved 2 slots: Utility x2 1900 | -9/Materials | Discovered new exit (range 15) 2044 | -9/Materials | Lost 3 parts (1n2u) 2375 | -9/Materials | Lost 3 parts (1p1u1w) 2484 | -9/Materials | Discovered new exit (range 10) 2598 | -9/Materials | Core integrity fell below 50% 2677 | -9/Materials | Identified exit to Mines 2759 | -9/Materials | Entered Mines 2850 | -9/Mines | Excavation squad dispatched 2850 | -9/Mines | A large section of the Mines collapsed 2964 | -9/Mines | Destroyed 10 combat bots 2966 | -9/Mines | Core integrity fell below 20% 3009 | -9/Mines | Lost 5 parts (1p2n2w) 3028 | -9/Mines | Discovered new exit (range 8) 3100 | -9/Mines | Learned location of Zion (-6) 3361 | -9/Mines | Destroyed by L-31 Rogue with Katana Last Messages --------------- 03118_ Sml. Storage Unit destroyed. 03120_ Autogun destroyed. 03123_ Slammed into G-34 Mercenary. 03126_ Acquired 43 matter. 03138_ G-34 Mercenary destroyed. 03140_ Acquired 42 matter. 03148_ Acquired Lgt. Nuclear Core. 03158_ System corrupted: Matter fused (-7). 03219_ System corrupted: Heat flow error (+187). 03269_ System corrupted: Energy discharge (-52). 03296_ Y&SXJ28J3DC=J|S1ROA>L0B LG 03320_ System corrupted: Component data lost. 03349_ Acquired 16 matter. 03352_ System corrupted: Energy discharge (-56). 03358_ Searching scrap... 03358_ Found Mace. 03358_ Found Med. Laser. 03358_ Found 65 Matter. 03359_ Acquired 65 matter. 03361_ U-05 Engineer builds a Wall. Map ----- +----------------------------------------------------+ | # #??????????????????????????????????????????? | | # #???????????????????????????????????????????? | | # #????????????????????????????????????????????? | | #?????????????????????????????????????????????? | | #?????????????????????????????????????????????? | | ##?#####??????????????????????????????????????? | | # ### ######?????????????????????????????????? | | # ##????????????????????????????????? | | ## ##???????????????????????????????? | | ?### "# ###??????????????????????????????? | | ???## # ###"##??????????????????????????????? | | ????## ## " " ####### #??#???????????????????? | | ?????##### #???????????????????? | | ??????## ???? #???????????????????? | | ???????## #####??????# #???????????????????? | | ????????## ! #????????# ##??????????????????? | | ????????# # # #???????# gg ???????????????????? | | ????????# # [ ##?????# ???????????????????? | | ????????# ## #?????# ????????????????????? | | ????????# # #####?# #????????????????????? | | ???????### # ### #### ?????????????????????? | | #??????# u ## #?????????????????????? | | #?????# # # # #?????????????????????? | | ###### # #= # % #?????????????????????? | | ## # ##! # l ##?????????????????????? | | # # # ## [@# #????????????????????? | | < # % # ## /####????????????????????? | | # # ## # #?????????????????????? | | ???# ##### ## # #?????????????????????? | | ???## ## ##### #?????????????? | | ????# #### #### ?????????? | | ????## ##??## ##### ?????????? | | ?????# #???# # ### #???????????????????????? | | ?????# #???#### ### #???????????????????????? | | ????## ###?????##### #???????????????????????? | | ????# ##????????# #???????????????????????? | | ????# #???????## ##???????????????????????? | | ##### ##??????# #????????????????????????? | | ####???# ##???????????????????????? | | ###### ##??## ##??????????????????????? | | ?????## #???# ####???????????????????? | | ??????## #???# #???????????????????? | | ??####### #???# ##???????????????????? | | ??# ## ## ##??# #### #????????????????????? | | ??# """ ## #?# #??# #### #????????????????????? | | ??# """ ## #?# ##?# #????????????????????? | | ??# """ ## #?# ### ######????????????????????? | | ??# ## ### #?????????????????????????? | | ??# """ ##?????????????????????????? | | ??# """ ######## ##??????????????????????????? | +----------------------------------------------------+ Best States ------------- Heat Dissipation 28 Energy Generation 14 Energy Capacity 265 Matter Stores 300 Matter Capacity 300 Sight Range 16 Terrain Scan Density 10 Armor Coverage 450 Evasion (%) 55 Recoil Reduction 2 Item Schematics ----------------- Lgt. Armor Plating | -10/Materials | Hacked Robot Schematics ------------------ None Fabricated ------------ Nothing Repaired ---------- Nothing Alien Tech Used ----------------- None Achievements -------------- None Challenges ------------ None Game ------ Seed JunkBottomlessSpiker Manual? 0 Play Time 00:22:55 Cumulative 21.3 hours Start 2025.10.12 @ 17:49:26 End 2025.10.12 @ 18:19:15 Sessions 5 Manual Loads 0 Difficulty Rogue Special Mode None Game No. 62 Rogue 62 Adventurer 0 Explorer 0 Win Type - Total 0 Types 0/0/0/0/0/0/0/0/0/0 Lore% 33 Gallery% 28 Achievement% 29 Wizard Run 0 Options --------- Layout 1 ASCII 0 Keyboard 0 Movement Numpad Keybinds 0 Fullscreen 1 Font 24/Smallcaps Map View 50x35 Zoom Use 1% Tactical HUD 1 Map Filters NONE Filters NONE Steam 1 RUN: b0c211dc-5737-40a8-959f-b0cd81e5c894